[Event "78th GEO-ch Women 1st League 2021"]
[Site "Tbilisi"]
[Date "2021.03.21"]
[Round "4.2"]
[White "Lomaia, Diana"]
[Black "Nikoladze, Sopio"]
[Result "1-0"]
[ECO "E18"]
[WhiteElo "1946"]
[BlackElo "2132"]
[Annotator "ChessBase"]
[PlyCount "93"]
[EventDate "2021.03.18"]
[EventType "swiss"]
[EventCountry "GEO"]
[SourceTitle "playchess.com"]
[Source "ChessBase"]
[SourceQuality "1"]
[TimeControl "5400+30"]

1. d4 {[%emt 0:00:00]} Nf6 {[%emt 0:00:00]} 2. c4 {[%emt 0:00:00]} e6 {[%emt 0:00:00]} 3. g3 {[%emt 0:00:30]} d5 {[%emt 0:01:11]} 4. Nf3 {[%emt 0:00:12]} Be7 {[%emt 0:00:20]} 5. Bg2 {[%emt 0:00:12]} O-O {[%emt 0:00:06]} 6. O-O {[%emt 0:00:14]} b6 {[%emt 0:00:18]} 7. cxd5 {[%emt 0:00:51]} exd5 {[%emt 0:00:03]} 8. Qc2 {[%emt 0:00:42]} Bb7 {[%emt 0:00:15]} 9. Nc3 {[%emt 0:02:58]} Nbd7 {[%emt 0:01:18]} 10. Bf4 {[%emt 0:00:42]} a6 {[%emt 0:03:16]} 11. Rfd1 {[%emt 0:01:14]} Rc8 {[%emt 0:02:18]} 12. Rac1 {[%emt 0:01:21]} Re8 {[%emt 0:02:28]} 13. Qf5 {[%emt 0:10:41]} Nf8 {[%emt 0:03:04]} 14. h4 {[%emt 0:05:05]} Ne6 {[%emt 0:04:13]} 15. Be5 {[%emt 0:05:20]} g6 {[%emt 0:01:31]} 16. Qb1 {[%emt 0:00:58]} Ne4 {[%emt 0:03:29]} 17. Bh3 {[%emt 0:04:40]} Bf8 {[%emt 0:04:26]} 18. Nd2 {[%emt 0:15:26]} f6 {[%emt 0:09:43]} 19. Ndxe4 {[%emt 0:01:25]} dxe4 {[%emt 0:01:59]} 20. d5 {[%emt 0:02:10]} Ng7 {[%emt 0:04:06]} 21. Bxc8 {[%emt 0:03:36]} Bxc8 {[%emt 0:00:04]} 22. Bf4 {[%emt 0:02:15]} g5 {[%emt 0:01:09]} 23. hxg5 {[%emt 0:05:50]} fxg5 {[%emt 0:00:03]} 24. Be3 {[%emt 0:01:37]} Nf5 {[%emt 0:02:41]} 25. Kg2 {[%emt 0:04:29]} Nxe3+ {[%emt 0:02:39]} 26. fxe3 {[%emt 0:00:08]} Qd7 {[%emt 0:00:19]} 27. Rh1 {[%emt 0:01:11]} Qg4 {[%emt 0:00:36]} 28. Rcg1 {[%emt 0:01:20]} Bd6 {[%emt 0:01:37]} 29. Kf2 {[%emt 0:01:46]} h5 {[%emt 0:02:49]} 30. b4 {[%emt 0:06:58]} Rf8+ {[%emt 0:05:26]} 31. Ke1 {[%emt 0:00:08]} Bxg3+ {[%emt 0:00:30]} 32. Kd2 {[%emt 0:00:12]} Re8 {[%emt 0:06:19]} 33. Qf1 {[%emt 0:02:44]} Rf8 {[%emt 0:05:40]} 34. Qg2 {[%emt 0:00:41]} Bd6 {[%emt 0:02:13]} 35. Qxe4 {[%emt 0:01:09]} Qxe4 {[%emt 0:00:50]} 36. Rxg5+ {[%emt 0:00:50]} Kf7 {[%emt 0:00:41]} 37. Nxe4 {[%emt 0:00:06]} Bxb4+ {[%emt 0:01:07]} 38. Kd3 {[%emt 0:00:17]} Ke8 {[%emt 0:00:42]} 39. Rhxh5 {[%emt 0:00:29]} a5 {[%emt 0:00:16]} 40. Kd4 {[%emt 0:06:29]} Ba3 {[%emt 0:00:29]} 41. Kc3 {[%emt 0:02:26]} Ba6 {[%emt 0:01:34]} 42. Rh7 {[%emt 0:00:56]} Bb4+ {[%emt 0:00:13]} 43. Kb3 {[%emt 0:00:35]} Bxe2 {[%emt 0:00:52]} 44. Rxc7 {[%emt 0:00:45]} Rf3 {[%emt 0:00:45]} 45. Rg8+ {[%emt 0:00:38]} Bf8 {[%emt 0:00:02]} 46. Rg3 {[%emt 0:02:44]} Bd1+ {[%emt 0:03:29]} 47. Kc4 {[%emt 0:02:03]} 1-0

[Event "78th GEO-ch Women 1st League 2021"]
[Site "Tbilisi"]
[Date "2021.03.21"]
[Round "4.3"]
[White "Tsotsonava, Elene"]
[Black "Gvetadze, Sofio"]
[Result "0-1"]
[ECO "B42"]
[WhiteElo "1805"]
[BlackElo "2317"]
[Annotator "ChessBase"]
[PlyCount "62"]
[EventDate "2021.03.18"]
[EventType "swiss"]
[EventCountry "GEO"]
[SourceTitle "playchess.com"]
[Source "ChessBase"]
[SourceQuality "1"]
[TimeControl "5400+30"]

1. e4 {[%emt 0:00:00]} c5 {[%emt 0:00:00]} 2. Nf3 {[%emt 0:00:00]} e6 {[%emt 0:00:00]} 3. d4 {[%emt 0:00:00]} cxd4 {[%emt 0:00:00]} 4. Nxd4 {[%emt 0:00:00]} a6 {[%emt 0:00:00]} 5. Bd3 {[%emt 0:00:00]} Qc7 {[%emt 0:00:25]} 6. O-O {[%emt 0:00:10]} Nf6 {[%emt 0:00:14]} 7. Qe2 {[%emt 0:00:16]} d6 {[%emt 0:00:20]} 8. c4 {[%emt 0:00:13]} Be7 {[%emt 0:00:19]} 9. b3 {[%emt 0:00:18]} Nbd7 {[%emt 0:01:08]} 10. Bb2 {[%emt 0:00:23]} Ne5 {[%emt 0:00:30]} 11. Bc2 {[%emt 0:02:17]} O-O {[%emt 0:01:07]} 12. Nc3 {[%emt 0:01:02]} Re8 {[%emt 0:01:59]} 13. Kh1 {[%emt 0:07:28]} Ng6 {[%emt 0:11:31]} 14. f4 {[%emt 0:05:04]} Qc5 {[%emt 0:28:01]} 15. Rad1 {[%emt 0:16:14]} e5 {[%emt 0:03:03]} 16. Na4 {[%emt 0:11:49]} Qc7 {[%emt 0:04:15]} 17. f5 {[%emt 0:02:41]} Nf4 {[%emt 0:10:14]} 18. Qd2 {[%emt 0:06:14]} exd4 {[%emt 0:00:31]} 19. Qxf4 {[%emt 0:05:26]} b5 {[%emt 0:00:29]} 20. Bxd4 {[%emt 0:04:49]} bxa4 {[%emt 0:00:11]} 21. e5 {[%emt 0:00:40]} dxe5 {[%emt 0:03:18]} 22. Bxe5 {[%emt 0:00:08]} Qa5 {[%emt 0:01:22]} 23. Be4 {[%emt 0:14:05]} Nxe4 {[%emt 0:05:24]} 24. Qxe4 {[%emt 0:00:06]} Bb7 {[%emt 0:01:21]} 25. Qxb7 {[%emt 0:01:07]} Qxe5 {[%emt 0:00:07]} 26. Rfe1 {[%emt 0:00:07]} Qf6 {[%emt 0:04:12]} 27. Qd7 {[%emt 0:04:31]} axb3 {[%emt 0:00:54]} 28. axb3 {[%emt 0:00:22]} Kf8 {[%emt 0:01:45]} 29. Qa4 {[%emt 0:02:11]} a5 {[%emt 0:02:16]} 30. Rd5 {[%emt 0:00:39]} Bb4 {[%emt 0:00:18]} 31. Red1 {[%emt 0:00:25]} Rad8 {[%emt 0:00:25]} 0-1

[Event "78th GEO-ch Women 1st League 2021"]
[Site "Tbilisi"]
[Date "2021.03.21"]
[Round "4.4"]
[White "Janiashvili, Mariami"]
[Black "Khurtsilava, Inga"]
[Result "0-1"]
[ECO "E18"]
[WhiteElo "1963"]
[BlackElo "2260"]
[Annotator "ChessBase"]
[PlyCount "84"]
[EventDate "2021.03.18"]
[EventType "swiss"]
[EventCountry "GEO"]
[SourceTitle "playchess.com"]
[Source "ChessBase"]
[SourceQuality "1"]
[TimeControl "5400+30"]

1. d4 {[%emt 0:00:00]} Nf6 {[%emt 0:00:00]} 2. c4 {[%emt 0:00:00]} e6 {[%emt 0:00:02]} 3. Nf3 {[%emt 0:00:13]} b6 {[%emt 0:00:27]} 4. g3 {[%emt 0:01:18]} Bb7 {[%emt 0:00:15]} 5. Bg2 {[%emt 0:00:06]} Be7 {[%emt 0:00:26]} 6. O-O {[%emt 0:00:24]} O-O {[%emt 0:00:04]} 7. Nc3 {[%emt 0:00:06]} Ne4 {[%emt 0:01:07]} 8. Bd2 {[%emt 0:01:53]} d5 {[%emt 0:01:33]} 9. cxd5 {[%emt 0:00:30]} Nxc3 {[%emt 0:04:18]} 10. Bxc3 {[%emt 0:03:21]} Bxd5 {[%emt 0:01:24]} 11. Qc2 {[%emt 0:01:43]} f5 {[%emt 0:00:44]} 12. e3 {[%emt 0:11:44]} Nd7 {[%emt 0:05:50]} 13. Rac1 {[%emt 0:04:33]} Nf6 {[%emt 0:04:59]} 14. Rfd1 {[%emt 0:02:42]} Be4 {[%emt 0:08:28]} 15. Qb3 {[%emt 0:02:50]} Qd5 {[%emt 0:03:29]} 16. Qxd5 {[%emt 0:01:35]} Nxd5 {[%emt 0:01:45]} 17. Ne5 {[%emt 0:02:15]} Bxg2 {[%emt 0:00:24]} 18. Kxg2 {[%emt 0:00:05]} Bd6 {[%emt 0:01:03]} 19. Nd3 {[%emt 0:01:48]} g5 {[%emt 0:00:53]} 20. Bd2 {[%emt 0:02:18]} g4 {[%emt 0:00:54]} 21. Rh1 {[%emt 0:13:35]} h5 {[%emt 0:00:32]} 22. h4 {[%emt 0:04:24]} Kf7 {[%emt 0:06:42]} 23. Rhe1 {[%emt 0:00:45]} Ke7 {[%emt 0:02:13]} 24. e4 {[%emt 0:07:14]} fxe4 {[%emt 0:00:07]} 25. Rxe4 {[%emt 0:00:14]} Kd7 {[%emt 0:01:45]} 26. Rce1 {[%emt 0:01:16]} Rae8 {[%emt 0:00:24]} 27. Bf4 {[%emt 0:08:53]} Rf5 {[%emt 0:04:43]} 28. Ne5+ {[%emt 0:12:55]} Bxe5 {[%emt 0:02:09]} 29. Rxe5 {[%emt 0:00:12]} Ref8 {[%emt 0:02:18]} 30. Rxf5 {[%emt 0:06:51]} Rxf5 {[%emt 0:00:26]} 31. Be5 {[%emt 0:02:16]} a5 {[%emt 0:04:10]} 32. Re2 {[%emt 0:00:53]} a4 {[%emt 0:02:35]} 33. Kf1 {[%emt 0:03:51]} b5 {[%emt 0:03:18]} 34. Kg2 {[%emt 0:00:55]} Rf3 {[%emt 0:01:52]} 35. Rc2 {[%emt 0:02:14]} c6 {[%emt 0:02:57]} 36. Re2 {[%emt 0:00:57]} b4 {[%emt 0:03:19]} 37. Bb8 {[%emt 0:00:44]} a3 {[%emt 0:01:15]} 38. Ba7 {[%emt 0:00:13]} b3 {[%emt 0:01:19]} 39. bxa3 {[%emt 0:00:37]} Nc3 {[%emt 0:00:07]} 40. Re1 {[%emt 0:01:04]} b2 {[%emt 0:00:24]} 41. d5 {[%emt 0:00:25]} b1=Q {[%emt 0:00:25]} 42. dxe6+ {[%emt 0:00:04]} Ke8 {[%emt 0:00:06]} 0-1

[Event "78th GEO-ch Women 1st League 2021"]
[Site "Tbilisi"]
[Date "2021.03.21"]
[Round "4.5"]
[White "Pipia, Ekaterine"]
[Black "Bedoshvili, Dea"]
[Result "1-0"]
[ECO "D30"]
[WhiteElo "2019"]
[BlackElo "1667"]
[Annotator "ChessBase"]
[PlyCount "61"]
[EventDate "2021.03.18"]
[EventType "swiss"]
[EventCountry "GEO"]
[SourceTitle "playchess.com"]
[Source "ChessBase"]
[SourceQuality "1"]
[TimeControl "5400+30"]

1. d4 {[%emt 0:00:00]} d5 {[%emt 0:00:00]} 2. c4 {[%emt 0:00:00]} e6 {[%emt 0:00:00]} 3. Nf3 {[%emt 0:00:00]} c6 {[%emt 0:00:00]} 4. Qc2 {[%emt 0:00:00]} Bd6 {[%emt 0:00:05]} 5. Bg5 {[%emt 0:02:08]} Qc7 {[%emt 0:00:27]} 6. e3 {[%emt 0:02:00]} Nd7 {[%emt 0:00:06]} 7. Nc3 {[%emt 0:00:48]} Ngf6 {[%emt 0:01:44]} 8. Rc1 {[%emt 0:02:51]} O-O {[%emt 0:01:04]} 9. Bd3 {[%emt 0:01:51]} dxc4 {[%emt 0:12:01]} 10. Bxc4 {[%emt 0:00:13]} c5 {[%emt 0:07:58]} 11. O-O {[%emt 0:01:58]} a6 {[%emt 0:00:35]} 12. dxc5 {[%emt 0:03:46]} Nxc5 {[%emt 0:10:47]} 13. Rfd1 {[%emt 0:02:32]} Be7 {[%emt 0:12:46]} 14. Bf4 {[%emt 0:06:52]} Qa5 {[%emt 0:02:38]} 15. a4 {[%emt 0:08:32]} Bd7 {[%emt 0:01:08]} 16. Ne5 {[%emt 0:13:34]} Be8 {[%emt 0:13:36]} 17. Ra1 {[%emt 0:03:21]} Ncd7 {[%emt 0:01:28]} 18. Nf3 {[%emt 0:07:09]} Rc8 {[%emt 0:01:36]} 19. Qe2 {[%emt 0:00:55]} Nb6 {[%emt 0:01:50]} 20. Bb3 {[%emt 0:00:17]} Bc6 {[%emt 0:02:27]} 21. Ne5 {[%emt 0:05:15]} Nbd5 {[%emt 0:00:47]} 22. Nxc6 {[%emt 0:00:54]} bxc6 {[%emt 0:00:59]} 23. Be5 {[%emt 0:03:38]} Nxc3 {[%emt 0:04:10]} 24. Bxc3 {[%emt 0:00:06]} Bb4 {[%emt 0:00:03]} 25. Bxf6 {[%emt 0:05:59]} gxf6 {[%emt 0:00:20]} 26. Qg4+ {[%emt 0:00:19]} Kh8 {[%emt 0:00:06]} 27. Qh4 {[%emt 0:01:04]} Rg8 {[%emt 0:06:40]} 28. Qxf6+ {[%emt 0:01:01]} Rg7 {[%emt 0:00:02]} 29. Rd4 {[%emt 0:02:35]} Qc5 {[%emt 0:01:20]} 30. Rad1 {[%emt 0:02:08]} Rf8 {[%emt 0:01:20]} 31. Rg4 {[%emt 0:01:57]} 1-0

[Event "78th GEO-ch Women 1st League 2021"]
[Site "Tbilisi"]
[Date "2021.03.21"]
[Round "4.6"]
[White "Mikadze, Miranda"]
[Black "Gvatua, Mariam"]
[Result "1-0"]
[ECO "B50"]
[WhiteElo "2269"]
[BlackElo "1343"]
[Annotator "ChessBase"]
[PlyCount "69"]
[EventDate "2021.03.18"]
[EventType "swiss"]
[EventCountry "GEO"]
[SourceTitle "playchess.com"]
[Source "ChessBase"]
[SourceQuality "1"]
[TimeControl "5400+30"]

1. e4 {[%emt 0:00:00]} c5 {[%emt 0:00:00]} 2. Nf3 {[%emt 0:00:00]} d6 {[%emt 0:00:00]} 3. c3 {[%emt 0:00:00]} Nf6 {[%emt 0:00:00]} 4. Bb5+ {[%emt 0:00:03]} Bd7 {[%emt 0:00:00]} 5. Bxd7+ {[%emt 0:00:12]} Qxd7 {[%emt 0:00:19]} 6. d3 {[%emt 0:01:24]} Nc6 {[%emt 0:00:07]} 7. O-O {[%emt 0:00:05]} g6 {[%emt 0:01:35]} 8. Re1 {[%emt 0:00:56]} Bg7 {[%emt 0:00:07]} 9. d4 {[%emt 0:00:11]} cxd4 {[%emt 0:00:35]} 10. cxd4 {[%emt 0:00:04]} O-O {[%emt 0:00:13]} 11. Nc3 {[%emt 0:00:05]} Rac8 {[%emt 0:01:39]} 12. h3 {[%emt 0:01:42]} e6 {[%emt 0:05:05]} 13. d5 {[%emt 0:06:02]} Ne7 {[%emt 0:00:26]} 14. dxe6 {[%emt 0:09:20]} fxe6 {[%emt 0:00:21]} 15. Be3 {[%emt 0:00:19]} b6 {[%emt 0:01:15]} 16. Qb3 {[%emt 0:00:40]} d5 {[%emt 0:02:27]} 17. Rad1 {[%emt 0:00:12]} Qb7 {[%emt 0:01:41]} 18. Bd4 {[%emt 0:04:23]} Rfd8 {[%emt 0:02:20]} 19. Ng5 {[%emt 0:04:55]} Qd7 {[%emt 0:10:11]} 20. exd5 {[%emt 0:00:23]} exd5 {[%emt 0:01:01]} 21. Ne6 {[%emt 0:01:10]} Re8 {[%emt 0:00:26]} 22. Nxg7 {[%emt 0:03:56]} Kxg7 {[%emt 0:04:13]} 23. Rxe7+ {[%emt 0:00:16]} Rxe7 {[%emt 0:02:58]} 24. Nxd5 {[%emt 0:00:30]} Re4 {[%emt 0:05:25]} 25. Nxf6 {[%emt 0:04:02]} Qxd4 {[%emt 0:00:40]} 26. Rxd4 {[%emt 0:00:14]} Rxd4 {[%emt 0:00:07]} 27. Ng4 {[%emt 0:00:05]} Rc7 {[%emt 0:01:27]} 28. Qf3 {[%emt 0:03:43]} Rd6 {[%emt 0:00:47]} 29. Qe3 {[%emt 0:00:44]} h5 {[%emt 0:02:22]} 30. Qe5+ {[%emt 0:00:14]} Kh7 {[%emt 0:00:07]} 31. Qxd6 {[%emt 0:00:17]} Rc1+ {[%emt 0:00:08]} 32. Kh2 {[%emt 0:00:04]} hxg4 {[%emt 0:00:06]} 33. Qd7+ {[%emt 0:00:55]} Kh8 {[%emt 0:00:12]} 34. Qxg4 {[%emt 0:00:52]} Rc5 {[%emt 0:00:08]} 35. Qxg6 {[%emt 0:00:15]} 1-0

[Event "78th GEO-ch Women 1st League 2021"]
[Site "Tbilisi"]
[Date "2021.03.21"]
[Round "4.7"]
[White "Kirtadze, Anastasia"]
[Black "Sichinava, Mariam"]
[Result "1-0"]
[ECO "D94"]
[WhiteElo "1810"]
[BlackElo "1516"]
[Annotator "NA"]
[PlyCount "109"]
[EventDate "2021.03.18"]
[EventType "swiss"]
[EventCountry "GEO"]
[SourceTitle "playchess.com"]
[Source "ChessBase"]
[SourceQuality "1"]
[TimeControl "5400+30"]

1. Nf3 {[%emt 0:00:00]} c5 {[%emt 0:04:31]} 2. c4 {[%emt 0:00:00]} g6 {[%emt 0:00:23]} 3. Nc3 {[%emt 0:00:37]} Bg7 {[%emt 0:00:07]} 4. e3 {[%emt 0:04:21]} Nf6 {[%emt 0:00:23]} 5. d4 {[%emt 0:00:40]} cxd4 {[%emt 0:00:02]} 6. exd4 {[%emt 0:00:25]} d5 {[%emt 0:00:14]} 7. cxd5 {[%emt 0:02:16]} Nxd5 {[%emt 0:00:06]} 8. Bc4 {[%emt 0:00:59]} Nxc3 {[%emt 0:01:03]} 9. bxc3 {[%emt 0:00:42]} O-O {[%emt 0:00:25]} 10. O-O {[%emt 0:00:45]} Nc6 {[%emt 0:00:27]} 11. Re1 {[%emt 0:04:07]} Na5 {[%emt 0:06:02]} 12. Bd3 {[%emt 0:02:48]} Be6 {[%emt 0:00:39]} 13. Ng5 {[%emt 0:02:11]} Bd5 {[%emt 0:00:26]} 14. Qa4 {[%emt 0:03:37]} Rc8 {[%emt 0:05:58]} 15. Ba3 {[%emt 0:02:38]} Bf6 {[%emt 0:11:26]} 16. Ne4 {[%emt 0:00:57]} Bxe4 {[%emt 0:03:00]} 17. Bxe4 {[%emt 0:00:15]} b6 {[%emt 0:03:08]} 18. Bb4 {[%emt 0:02:35]} Qc7 {[%emt 0:03:11]} 19. Bxa5 {[%emt 0:03:06]} bxa5 {[%emt 0:00:03]} 20. Re3 {[%emt 0:00:31]} Rfd8 {[%emt 0:01:51]} 21. Rb1 {[%emt 0:02:17]} Rb8 {[%emt 0:05:03]} 22. Rxb8 {[%emt 0:02:00]} Rxb8 {[%emt 0:00:02]} 23. g3 {[%emt 0:01:05]} Rb2 {[%emt 0:07:26]} 24. h4 {[%emt 1:03:08]} Qc8 {[%emt 0:08:24]} 25. Qxa5 {[%emt 0:00:00]} Qg4 {[%emt 0:03:22]} 26. Qa3 {[%emt 0:00:00]} Qd1+ {[%emt 0:00:54]} 27. Kg2 {[%emt 0:00:00]} Qd2 {[%emt 0:00:30]} 28. Rf3 {[%emt 0:00:00]} Rxa2 {[%emt 0:00:47]} 29. Qb3 {[%emt 0:00:00]} Ra1 {[%emt 0:02:49]} 30. Rf4 {[%emt 0:00:00]} Qe1 {[%emt 0:06:23]} 31. Kh3 {[%emt 0:00:00]} Kg7 {[%emt 0:00:47]} 32. Bg2 {[%emt 0:00:00]} a5 {[%emt 0:01:04]} 33. g4 {[%emt 0:00:00]} a4 {[%emt 0:02:43]} 34. Qc4 {[%emt 0:00:00]} h6 {[%emt 0:01:58]} 35. g5 {[%emt 0:00:00]} Rc1 {[%emt 0:03:06]} 36. gxf6+ {[%emt 0:00:00]} exf6 {[%emt 0:00:02]} 37. Qxa4 {[%emt 0:00:00]} Rxc3+ {[%emt 0:00:31]} 38. Kh2 {[%emt 0:00:00]} g5 {[%emt 0:02:25]} 39. hxg5 {[%emt 0:00:00]} hxg5 {[%emt 0:00:01]} 40. Rf5 {[%emt 0:00:00]} g4 {[%emt 0:05:19]} 41. d5 {[%emt 0:00:00]} g3+ {[%emt 0:03:43]} 42. fxg3 {[%emt 0:00:00]} Qxg3+ {[%emt 0:00:04]} 43. Kh1 {[%emt 0:00:00]} Rc1+ {[%emt 0:01:28]} 44. Rf1 {[%emt 0:00:00]} Rc8 {[%emt 0:00:58]} 45. Qf4 {[%emt 0:00:00]} Qg5 {[%emt 0:03:12]} (45... Qxf4 $142 46. Rxf4 Kg6) 46. Rf3 {[%emt 0:00:00]} Kf8 {[%emt 0:02:29]} 47. Qd6+ {[%emt 0:00:00]} Ke8 {[%emt 0:00:34]} 48. Rf1 {[%emt 0:00:00]} Qh4+ {[%emt 0:02:10] [#]} 49. Qh2 $1 {[%emt 0:00:00]} Qxh2+ {[%emt 0:00:49]} 50. Kxh2 {[%emt 0:00:00]} Ke7 {[%emt 0:00:01]} 51. Kg3 {[%emt 0:00:00]} Rc4 {[%emt 0:00:26]} (51... Rg8+ $142 52. Kf2 f5 53. Re1+ Kd6) 52. Ra1 {[%emt 0:00:00]} Kd6 {[%emt 0:00:43]} (52... f5 $142 53. Bf3 Rb4) 53. Ra6+ {[%emt 0:00:00]} Ke7 {[%emt 0:00:26]} 54. d6+ {[%emt 0:00:00]} Kd7 {[%emt 0:00:02]} 55. Bh3+ {[%emt 0:00:00]} 1-0

[Event "78th GEO-ch Women 1st League 2021"]
[Site "Tbilisi"]
[Date "2021.03.21"]
[Round "4.8"]
[White "Javakhishvili, Mariam"]
[Black "Dolakidze, Mariam"]
[Result "1/2-1/2"]
[ECO "A84"]
[WhiteElo "1671"]
[BlackElo "1416"]
[Annotator "NA"]
[PlyCount "73"]
[EventDate "2021.03.18"]
[EventType "swiss"]
[EventCountry "GEO"]
[SourceTitle "playchess.com"]
[Source "ChessBase"]
[SourceQuality "1"]
[TimeControl "5400+30"]

1. d4 {[%emt 0:00:00]} e6 {[%emt 0:00:00]} 2. c4 {[%emt 0:00:00]} f5 {[%emt 0:00:00]} 3. Nc3 {[%emt 0:00:00]} d5 {[%emt 0:00:00]} 4. Nf3 {[%emt 0:00:33]} c6 {[%emt 0:00:00]} 5. Bf4 {[%emt 0:02:43]} Bd6 {[%emt 0:00:53]} 6. e3 {[%emt 0:01:07]} Nf6 {[%emt 0:00:44]} 7. h3 {[%emt 0:00:45]} a6 {[%emt 0:00:46]} 8. Ne5 {[%emt 0:03:16]} Bxe5 {[%emt 0:00:52]} 9. Bxe5 {[%emt 0:00:11]} Nbd7 {[%emt 0:00:13]} 10. Bf4 {[%emt 0:01:32]} O-O {[%emt 0:03:41]} 11. g4 {[%emt 0:03:35]} Ne4 {[%emt 0:00:12]} 12. Nxe4 {[%emt 0:01:24]} fxe4 {[%emt 0:00:09]} 13. h4 {[%emt 0:00:19]} Qa5+ {[%emt 0:00:06]} 14. Qd2 {[%emt 0:00:08]} Qxd2+ {[%emt 0:00:19]} 15. Kxd2 {[%emt 0:00:02]} Nf6 {[%emt 0:00:47]} 16. Bd6 {[%emt 0:04:11]} Rf7 {[%emt 0:00:45]} 17. g5 {[%emt 0:08:35]} Ng4 {[%emt 0:03:47]} 18. Be2 {[%emt 0:05:44]} Nxf2 {[%emt 0:01:13]} 19. Rh2 {[%emt 0:00:31]} e5 {[%emt 0:04:31]} 20. dxe5 {[%emt 0:00:58]} Nh3 {[%emt 0:08:31]} 21. Rah1 {[%emt 0:02:03]} Nf2 {[%emt 0:00:33]} 22. Rg1 {[%emt 0:08:47]} Be6 {[%emt 0:01:07]} 23. c5 {[%emt 0:00:31]} Rd8 {[%emt 0:07:43]} 24. h5 {[%emt 0:02:52]} Rf5 {[%emt 0:06:46]} 25. Rgg2 {[%emt 0:00:13]} Nd3 {[%emt 0:00:06]} 26. Bg4 {[%emt 0:00:07]} Rxe5 {[%emt 0:00:44]} 27. Bxe5 {[%emt 0:00:28]} Bxg4 {[%emt 0:00:04]} 28. Bd6 {[%emt 0:01:55]} Bf3 {[%emt 0:00:04]} 29. Rg3 {[%emt 0:03:35]} Nxb2 {[%emt 0:00:19]} 30. Kc3 {[%emt 0:00:18]} Nc4 {[%emt 0:02:38]} 31. Bf4 {[%emt 0:00:02]} Re8 {[%emt 0:02:34]} 32. Rg1 {[%emt 0:00:52]} Re7 {[%emt 0:02:17]} 33. Rb1 {[%emt 0:01:15]} Rd7 {[%emt 0:00:50]} 34. h6 {[%emt 0:01:22]} g6 {[%emt 0:00:03]} 35. Rf2 {[%emt 0:02:12]} Kf7 {[%emt 0:02:06]} 36. Rff1 {[%emt 0:03:06]} Ke7 {[%emt 0:00:31]} 37. Rb4 {[%emt 0:01:25]} 1/2-1/2

[Event "78th GEO-ch Women 1st League 2021"]
[Site "Tbilisi"]
[Date "2021.03.21"]
[Round "4.9"]
[White "Oniani, Tamar"]
[Black "Sordia, Marta"]
[Result "1-0"]
[ECO "E11"]
[WhiteElo "1604"]
[BlackElo "1226"]
[Annotator "NA"]
[PlyCount "117"]
[EventDate "2021.03.18"]
[EventType "swiss"]
[EventCountry "GEO"]
[SourceTitle "playchess.com"]
[Source "ChessBase"]
[SourceQuality "1"]
[TimeControl "5400+30"]

1. d4 {[%emt 0:16:46]} d5 {[%emt 0:00:00]} 2. c4 {[%emt 0:00:07]} e6 {[%emt 0:00:00]} 3. Nf3 {[%emt 0:00:35]} Nf6 {[%emt 0:00:00]} 4. g3 {[%emt 0:00:03]} Bb4+ {[%emt 0:02:30]} 5. Bd2 {[%emt 0:00:59]} Qe7 {[%emt 0:00:06]} 6. a3 {[%emt 0:00:33]} Bxd2+ {[%emt 0:00:05]} 7. Nbxd2 {[%emt 0:00:03]} O-O {[%emt 0:00:11]} 8. Bg2 {[%emt 0:00:12]} Rd8 {[%emt 0:00:57]} 9. Qc2 {[%emt 0:07:23]} Nc6 {[%emt 0:00:56]} 10. e3 {[%emt 0:04:42]} e5 {[%emt 0:07:53]} 11. dxe5 {[%emt 0:01:13]} Nxe5 {[%emt 0:00:28]} 12. O-O {[%emt 0:00:30]} dxc4 {[%emt 0:05:21]} 13. Nxe5 {[%emt 0:00:08]} Qxe5 {[%emt 0:00:07]} 14. Nxc4 {[%emt 0:00:03]} Qe7 {[%emt 0:01:11]} 15. Rfd1 {[%emt 0:00:51]} Rxd1+ {[%emt 0:05:18]} 16. Rxd1 {[%emt 0:00:05]} c6 {[%emt 0:00:12]} 17. h3 {[%emt 0:06:46]} Be6 {[%emt 0:02:10]} 18. Nd6 {[%emt 0:05:17]} h6 {[%emt 0:01:14]} 19. Ne4 {[%emt 0:10:25]} Nxe4 {[%emt 0:01:41]} 20. Qxe4 {[%emt 0:00:07]} Rd8 {[%emt 0:01:34]} 21. Rxd8+ {[%emt 0:09:10]} Qxd8 {[%emt 0:00:03]} 22. Qc2 {[%emt 0:00:03]} Qd7 {[%emt 0:00:42]} 23. Kh2 {[%emt 0:00:13]} Bd5 {[%emt 0:04:32]} 24. e4 {[%emt 0:00:18]} Be6 {[%emt 0:00:08]} 25. f4 {[%emt 0:00:03]} Qd4 {[%emt 0:00:28]} 26. Bf1 {[%emt 0:13:46]} c5 {[%emt 1:05:13]} 27. Bg2 {[%emt 0:23:09]} b6 {[%emt 0:00:30]} 28. f5 {[%emt 0:00:30]} Bc4 {[%emt 0:00:30]} 29. Qa4 {[%emt 0:00:30]} a6 {[%emt 0:00:30]} 30. b3 {[%emt 0:00:30]} Bb5 {[%emt 0:00:00]} 31. Qxd4 {[%emt 0:00:00]} cxd4 {[%emt 0:00:00]} 32. Kg1 {[%emt 0:00:00]} f6 {[%emt 0:00:00]} 33. Kf2 {[%emt 0:00:00]} Bd3 {[%emt 0:00:00]} 34. Ke1 {[%emt 0:00:32]} a5 {[%emt 0:00:00]} 35. Kd2 {[%emt 0:00:27]} Ba6 {[%emt 0:00:00]} 36. Bf3 {[%emt 0:00:19]} Bf1 {[%emt 0:00:00]} 37. h4 {[%emt 0:00:23]} d3 {[%emt 0:00:00]} 38. Bg4 {[%emt 0:00:04]} Kf7 {[%emt 0:00:00]} 39. Ke3 {[%emt 0:01:18]} Ke7 {[%emt 0:00:00]} 40. Kf2 {[%emt 0:00:06]} Be2 {[%emt 0:00:00]} 41. Bxe2 {[%emt 0:00:03]} dxe2 {[%emt 0:00:00]} 42. Kxe2 {[%emt 0:00:03]} Kd6 {[%emt 0:00:00]} 43. Kd3 {[%emt 0:01:00]} Kc5 {[%emt 0:00:00]} 44. Kc3 {[%emt 0:00:33]} h5 {[%emt 0:00:00]} 45. b4+ {[%emt 0:00:58]} axb4+ {[%emt 0:00:00]} 46. axb4+ {[%emt 0:00:02]} Kc6 {[%emt 0:00:00]} 47. Kc4 {[%emt 0:00:14]} b5+ {[%emt 0:00:00]} 48. Kd3 {[%emt 0:00:48]} Kc7 {[%emt 0:00:00]} 49. Ke3 {[%emt 0:00:32]} Kc6 {[%emt 0:00:00]} 50. Kf4 {[%emt 0:00:29]} Kd6 {[%emt 0:00:00]} 51. g4 {[%emt 0:00:20]} hxg4 {[%emt 0:00:00]} 52. Kxg4 {[%emt 0:00:02]} Ke5 {[%emt 0:00:00]} 53. Kh5 {[%emt 0:01:29]} Kxe4 {[%emt 0:00:00]} 54. Kg6 {[%emt 0:00:04]} Kf4 {[%emt 0:00:00]} 55. h5 {[%emt 0:00:11]} Kg4 {[%emt 0:00:00]} 56. Kxg7 {[%emt 0:00:05]} Kxh5 {[%emt 0:00:00]} 57. Kxf6 {[%emt 0:00:04]} Kh6 {[%emt 0:00:00]} 58. Ke7 {[%emt 0:00:03]} Kg7 {[%emt 0:00:00]} 59. f6+ {[%emt 0:00:03]} 1-0